[Event "ESP-chT Div I 2018"]
[Site "Linares"]
[Date "2018.08.09"]
[Round "4"]
[White "Martin Capitan, Feliciano"]
[Black "Bermudez Revuelta, Paula"]
[Result "1-0"]
[ECO "A36"]
[WhiteElo "2066"]
[BlackElo "1887"]
[Annotator "NA"]
[PlyCount "111"]
[EventDate "2018.08.06"]
[EventType "team-tourn"]
[EventCountry "ESP"]
[SourceTitle "playchess.com"]
[Source "ChessBase"]
[SourceQuality "1"]
[TimeControl "40/5400+30:1800+30"]

1. g3 {[%emt 0:00:00]} c5 {[%emt 0:00:00]} 2. Bg2 {[%emt 0:00:10]} g6 {[%emt 0:00:05]} 3. c4 {[%emt 0:00:31]} Bg7 {[%emt 0:00:05]} 4. Nc3 {[%emt 0:00:32]} Nc6 {[%emt 0:00:03]} 5. d3 {[%emt 0:01:50]} d6 {[%emt 0:00:52]} 6. Nf3 {[%emt 0:01:31]} Nf6 {[%emt 0:00:07]} 7. O-O {[%emt 0:01:05]} O-O {[%emt 0:00:23]} 8. Bd2 {[%emt 0:01:26]} d5 {[%emt 0:01:28]} 9. cxd5 {[%emt 0:07:03]} Nxd5 {[%emt 0:00:03]} 10. Nxd5 {[%emt 0:02:34]} Qxd5 {[%emt 0:00:02]} 11. Bc3 {[%emt 0:00:26]} Rb8 {[%emt 0:03:28]} 12. Ne5 {[%emt 0:06:15]} Qd6 {[%emt 0:02:59]} 13. Nxc6 {[%emt 0:00:39]} bxc6 {[%emt 0:01:44]} 14. Bxg7 {[%emt 0:00:58]} Kxg7 {[%emt 0:00:08]} 15. Qc2 {[%emt 0:04:06]} Bf5 {[%emt 0:10:59]} 16. b3 {[%emt 0:03:49]} Rfc8 {[%emt 0:07:07]} 17. Rfc1 {[%emt 0:02:14]} Rb5 {[%emt 0:05:11]} 18. Qc3+ {[%emt 0:03:08]} Kg8 {[%emt 0:02:55]} 19. h4 {[%emt 0:03:31]} Qe6 {[%emt 0:04:38]} 20. Bf3 {[%emt 0:05:47]} Bg4 {[%emt 0:05:07]} 21. Bxg4 {[%emt 0:01:43]} Qxg4 {[%emt 0:00:03]} 22. Rc2 {[%emt 0:00:22]} Qf5 {[%emt 0:08:05]} 23. Rac1 {[%emt 0:01:38]} h5 {[%emt 0:04:59]} 24. Qd2 {[%emt 0:01:52]} Qe5 {[%emt 0:02:03]} 25. Rc4 {[%emt 0:01:59]} a5 {[%emt 0:05:02]} 26. Re4 {[%emt 0:02:37]} Qf6 {[%emt 0:05:41]} 27. Qc3 {[%emt 0:01:57]} Qd6 {[%emt 0:04:40]} 28. Qe5 {[%emt 0:04:31]} Qxe5 {[%emt 0:02:06]} 29. Rxe5 {[%emt 0:00:11]} c4 {[%emt 0:00:49]} 30. Rxb5 {[%emt 0:02:12]} cxb5 {[%emt 0:00:01]} 31. dxc4 {[%emt 0:00:51]} Kf8 {[%emt 0:03:37]} 32. Kf1 {[%emt 0:00:54]} e5 {[%emt 0:00:37]} 33. Ke1 {[%emt 0:00:36]} Ke7 {[%emt 0:00:11]} 34. Kd2 {[%emt 0:01:17]} b4 {[%emt 0:00:38]} 35. Kc2 {[%emt 0:02:27]} a4 {[%emt 0:01:01]} 36. Rd1 {[%emt 0:01:02]} Rc5 {[%emt 0:01:19]} 37. e4 {[%emt 0:01:28]} a3 {[%emt 0:01:56]} 38. Rd5 {[%emt 0:01:59]} Rxd5 {[%emt 0:00:04]} 39. cxd5 {[%emt 0:02:26]} f5 {[%emt 0:00:53]} 40. f3 {[%emt 0:00:53]} Kd6 {[%emt 0:01:05]} 41. Kd3 {[%emt 0:30:46]} Kc5 {[%emt 0:30:59]} 42. Ke3 {[%emt 0:01:33]} Kd6 {[%emt 0:01:11]} 43. f4 {[%emt 0:00:36]} exf4+ {[%emt 0:01:54]} 44. Kxf4 {[%emt 0:00:41]} Kc5 {[%emt 0:00:43]} 45. exf5 {[%emt 0:01:09]} gxf5 {[%emt 0:00:15]} 46. Ke5 {[%emt 0:00:24]} Kb6 {[%emt 0:00:51]} 47. Kxf5 {[%emt 0:00:09]} Kc5 {[%emt 0:00:16]} 48. Ke5 {[%emt 0:00:06]} Kb6 {[%emt 0:00:19]} 49. Ke6 {[%emt 0:00:19]} Kc5 {[%emt 0:00:09]} 50. d6 {[%emt 0:00:24]} Kd4 {[%emt 0:00:03]} 51. d7 {[%emt 0:00:13]} Kc3 {[%emt 0:00:03]} 52. d8=Q {[%emt 0:00:12]} Kb2 {[%emt 0:00:08]} 53. Qd2+ {[%emt 0:00:24]} Kb1 {[%emt 0:00:11]} 54. Kd5 {[%emt 0:00:30]} Ka1 {[%emt 0:00:11]} 55. Kc4 {[%emt 0:00:07]} Kb1 {[%emt 0:00:02]} 56. Kxb4 {[%emt 0:00:09]} 1-0

[Event "ESP-chT Div I 2018"]
[Site "Linares"]
[Date "2018.08.09"]
[Round "4"]
[White "Rodrigo Yanguas, Maria"]
[Black "Argandona Riveiro, Inigo"]
[Result "0-1"]
[ECO "B22"]
[WhiteElo "2062"]
[BlackElo "2415"]
[Annotator "NA"]
[PlyCount "72"]
[EventDate "2018.08.06"]
[EventType "team-tourn"]
[EventCountry "ESP"]
[SourceTitle "playchess.com"]
[Source "ChessBase"]
[SourceQuality "1"]
[TimeControl "40/5400+30:1800+30"]

1. e4 {[%emt 0:00:00]} c5 {[%emt 0:00:00]} 2. c3 {[%emt 0:00:15]} d6 {[%emt 0:00:10]} 3. d4 {[%emt 0:00:13]} Nf6 {[%emt 0:00:13]} 4. Bd3 {[%emt 0:03:54]} Nbd7 {[%emt 0:01:05]} 5. Nf3 {[%emt 0:04:42]} Qc7 {[%emt 0:04:47]} 6. O-O {[%emt 0:00:59]} a6 {[%emt 0:04:34]} 7. Re1 {[%emt 0:03:31]} c4 {[%emt 0:03:51]} 8. Bc2 {[%emt 0:02:27]} e5 {[%emt 0:00:29]} 9. a4 {[%emt 0:00:57]} Be7 {[%emt 0:06:44]} 10. Qe2 {[%emt 0:06:21]} Rb8 {[%emt 0:00:10]} 11. b3 {[%emt 0:06:50]} cxb3 {[%emt 0:02:07]} 12. Bxb3 {[%emt 0:00:09]} O-O {[%emt 0:00:11]} 13. Nh4 {[%emt 0:03:02]} Nb6 {[%emt 0:09:18]} 14. a5 {[%emt 0:00:57]} Na8 {[%emt 0:07:59]} 15. Nf5 {[%emt 0:03:38]} Bxf5 {[%emt 0:02:45]} 16. exf5 {[%emt 0:00:27]} b5 {[%emt 0:07:35]} 17. g4 {[%emt 0:01:00]} h6 {[%emt 0:20:27]} 18. h4 {[%emt 0:00:13]} Qd7 {[%emt 0:12:57]} 19. Nd2 {[%emt 0:18:01]} exd4 {[%emt 0:02:37]} 20. g5 {[%emt 0:09:01]} dxc3 {[%emt 0:01:27]} 21. Nf3 {[%emt 0:00:46]} Qxf5 {[%emt 0:04:17]} 22. gxf6 {[%emt 0:03:05]} Qg4+ {[%emt 0:00:14]} 23. Kh1 {[%emt 0:02:44]} Bxf6 {[%emt 0:00:18]} 24. Be3 {[%emt 0:07:19]} Rbe8 {[%emt 0:00:54]} 25. Rad1 {[%emt 0:01:12]} Qh3+ {[%emt 0:00:52]} 26. Nh2 {[%emt 0:04:37]} Be5 {[%emt 0:00:16]} 27. f4 {[%emt 0:03:33]} Bxf4 {[%emt 0:00:02]} 28. Rd3 {[%emt 0:00:38]} Qxh4 {[%emt 0:00:08]} 29. Rxc3 {[%emt 0:00:58]} Bxh2 {[%emt 0:00:09]} 30. Kg2 {[%emt 0:09:16]} Be5 {[%emt 0:00:48]} 31. Rcc1 {[%emt 0:00:44]} Qg3+ {[%emt 0:02:26]} 32. Kh1 {[%emt 0:01:09]} Qh3+ {[%emt 0:00:51]} 33. Kg1 {[%emt 0:00:05]} Bd4 {[%emt 0:00:19]} 34. Bxd4 {[%emt 0:01:20]} Rxe2 {[%emt 0:00:06]} 35. Rxe2 {[%emt 0:00:05]} Qg4+ {[%emt 0:00:42]} 36. Kf1 {[%emt 0:02:08]} Qxd4 {[%emt 0:00:14]} 0-1

[Event "ESP-chT Div I 2018"]
[Site "Linares"]
[Date "2018.08.09"]
[Round "4"]
[White "Vergara Anton, Diego"]
[Black "Bergez, Luc"]
[Result "0-1"]
[ECO "A43"]
[WhiteElo "2022"]
[BlackElo "2327"]
[Annotator "NA"]
[PlyCount "124"]
[EventDate "2018.08.06"]
[EventType "team-tourn"]
[EventCountry "ESP"]
[SourceTitle "playchess.com"]
[Source "ChessBase"]
[SourceQuality "1"]
[TimeControl "40/5400+30:1800+30"]

1. d4 {[%emt 0:00:00]} c5 {[%emt 0:00:00]} 2. dxc5 {[%emt 0:00:30]} Qa5+ {[%emt 0:07:04]} 3. c3 {[%emt 0:07:15]} Qxc5 {[%emt 0:00:12]} 4. e4 {[%emt 0:00:13]} Nf6 {[%emt 0:02:41]} 5. Bd3 {[%emt 0:01:22]} g6 {[%emt 0:03:40]} 6. Be3 {[%emt 0:00:34]} Qc7 {[%emt 0:01:17]} 7. Na3 {[%emt 0:01:59]} Nc6 {[%emt 0:00:23]} 8. h3 {[%emt 0:15:46]} d5 {[%emt 0:03:46]} 9. exd5 {[%emt 0:18:14]} Nxd5 {[%emt 0:02:49]} 10. Qd2 {[%emt 0:03:48]} Nxe3 {[%emt 0:00:17]} 11. Qxe3 {[%emt 0:00:12]} Bg7 {[%emt 0:01:11]} 12. Nb5 {[%emt 0:00:30]} Qb8 {[%emt 0:00:39]} 13. Nf3 {[%emt 0:02:20]} O-O {[%emt 0:03:28]} 14. O-O {[%emt 0:00:38]} e5 {[%emt 0:03:35]} 15. Rad1 {[%emt 0:05:58]} Be6 {[%emt 0:06:59]} 16. Bb1 {[%emt 0:01:46]} Bc4 {[%emt 0:03:41]} 17. Bd3 {[%emt 0:01:00]} Be6 {[%emt 0:09:01]} 18. Bb1 {[%emt 0:00:17]} Rd8 {[%emt 0:03:50]} 19. Rxd8+ {[%emt 0:01:11]} Qxd8 {[%emt 0:00:09]} 20. Qe2 {[%emt 0:05:15]} Qe7 {[%emt 0:04:43]} 21. Rd1 {[%emt 0:03:57]} f5 {[%emt 0:01:57]} 22. Bc2 {[%emt 0:06:25]} a6 {[%emt 0:02:38]} 23. Na3 {[%emt 0:00:24]} Bxa2 {[%emt 0:05:04]} 24. Nd2 {[%emt 0:05:39]} Be6 {[%emt 0:07:29]} 25. Bb3 {[%emt 0:00:33]} b5 {[%emt 0:01:04]} 26. Nc2 {[%emt 0:03:06]} Rd8 {[%emt 0:08:01]} 27. Bxe6+ {[%emt 0:03:00]} Qxe6 {[%emt 0:00:02]} 28. Nf3 {[%emt 0:01:44]} Rd6 {[%emt 0:03:12]} 29. Rxd6 {[%emt 0:00:49]} Qxd6 {[%emt 0:00:03]} 30. Qd2 {[%emt 0:00:19]} Qxd2 {[%emt 0:00:17]} 31. Nxd2 {[%emt 0:00:04]} Kf7 {[%emt 0:00:31]} 32. Kf1 {[%emt 0:00:47]} Ke6 {[%emt 0:00:20]} 33. Ke2 {[%emt 0:00:06]} Bf8 {[%emt 0:01:54]} 34. g4 {[%emt 0:03:34]} Bc5 {[%emt 0:00:57]} 35. Nf3 {[%emt 0:02:11]} h6 {[%emt 0:03:42]} 36. Nh4 {[%emt 0:02:38]} Ne7 {[%emt 0:01:08]} 37. gxf5+ {[%emt 0:01:26]} gxf5 {[%emt 0:00:40]} 38. Ne1 {[%emt 0:01:48]} Nd5 {[%emt 0:00:41]} 39. Nd3 {[%emt 0:00:18]} Bd6 {[%emt 0:00:37]} 40. Ng2 {[%emt 0:00:39]} e4 {[%emt 0:00:54]} 41. Nde1 {[%emt 0:30:18]} Nb6 {[%emt 0:31:37]} 42. Nc2 {[%emt 0:00:46]} Na4 {[%emt 0:00:42]} 43. Nd4+ {[%emt 0:00:24]} Kf6 {[%emt 0:01:37]} 44. Ne3 {[%emt 0:00:59]} f4 {[%emt 0:00:25]} 45. Ng4+ {[%emt 0:00:25]} Kg6 {[%emt 0:01:20]} 46. Nxh6 {[%emt 0:00:29]} Nxb2 {[%emt 0:00:46]} 47. Ng4 {[%emt 0:00:43]} Nc4 {[%emt 0:01:51]} 48. f3 {[%emt 0:01:01]} Ne5 {[%emt 0:02:36]} 49. fxe4 {[%emt 0:00:28]} Nxg4 {[%emt 0:00:28]} 50. hxg4 {[%emt 0:00:02]} Be5 {[%emt 0:00:14]} 51. Ne6 {[%emt 0:00:36]} a5 {[%emt 0:00:31]} 52. Nd8 {[%emt 0:00:48]} a4 {[%emt 0:00:16]} 53. Nc6 {[%emt 0:00:07]} Bxc3 {[%emt 0:00:21]} 54. Kd3 {[%emt 0:00:11]} f3 {[%emt 0:00:30]} 55. Ne7+ {[%emt 0:00:04]} Kg5 {[%emt 0:00:09]} 56. Nf5 {[%emt 0:00:12]} Be5 {[%emt 0:01:22]} 57. Ne3 {[%emt 0:00:29]} a3 {[%emt 0:00:16]} 58. Nc2 {[%emt 0:00:42]} a2 {[%emt 0:00:07]} 59. Ke3 {[%emt 0:00:03]} Kxg4 {[%emt 0:00:23]} 60. Kf2 {[%emt 0:00:09]} b4 {[%emt 0:00:30]} 61. Ne3+ {[%emt 0:00:10]} Kg5 {[%emt 0:01:14]} 62. Kxf3 {[%emt 0:00:25]} a1=Q {[%emt 0:00:16]} 0-1

[Event "ESP-chT Div I 2018"]
[Site "Linares"]
[Date "2018.08.09"]
[Round "4"]
[White "Gonzalez Guedes, Iyan"]
[Black "Garcia-Castany Musellas, Gal la"]
[Result "0-1"]
[ECO "C50"]
[WhiteElo "1925"]
[BlackElo "2203"]
[Annotator "NA"]
[PlyCount "104"]
[EventDate "2018.08.06"]
[EventType "team-tourn"]
[EventCountry "ESP"]
[SourceTitle "playchess.com"]
[Source "ChessBase"]
[SourceQuality "1"]
[TimeControl "40/5400+30:1800+30"]

1. e4 {[%emt 0:00:00]} e5 {[%emt 0:00:00]} 2. Nf3 {[%emt 0:00:00]} Nc6 {[%emt 0:00:00]} 3. Bc4 {[%emt 0:00:00]} Bc5 {[%emt 0:00:00]} 4. O-O {[%emt 0:00:02]} Nf6 {[%emt 0:00:18]} 5. d4 {[%emt 0:00:05]} Bxd4 {[%emt 0:05:49]} 6. Nxd4 {[%emt 0:00:08]} Nxd4 {[%emt 0:02:39]} 7. f4 {[%emt 0:00:05]} d6 {[%emt 0:03:58]} 8. fxe5 {[%emt 0:00:47]} dxe5 {[%emt 0:01:25]} 9. Bg5 {[%emt 0:00:38]} Qe7 {[%emt 0:28:06]} 10. Na3 {[%emt 0:03:05]} Be6 {[%emt 0:20:26]} 11. c3 {[%emt 0:01:24]} Bxc4 {[%emt 0:04:09]} 12. Nxc4 {[%emt 0:00:43]} Qc5 {[%emt 0:03:08]} 13. cxd4 {[%emt 0:01:32]} Qxc4 {[%emt 0:02:00]} 14. Rc1 {[%emt 0:28:23]} Qxa2 {[%emt 0:18:46]} 15. Rxc7 {[%emt 0:04:45]} Qxb2 {[%emt 0:00:16]} 16. Qa4+ {[%emt 0:19:53]} b5 {[%emt 0:02:33]} 17. Qa6 {[%emt 0:00:17]} Qxd4+ {[%emt 0:01:06]} 18. Kh1 {[%emt 0:00:04]} Qb6 {[%emt 0:00:48]} 19. Rc8+ {[%emt 0:00:13]} Ke7 20. Qxb6 {[%emt 0:10:30]} axb6 {[%emt 0:00:35]} 21. Rc7+ {[%emt 0:00:53]} Kd6 {[%emt 0:01:34]} 22. Rxf7 {[%emt 0:01:19]} Nxe4 {[%emt 0:00:18]} 23. Be3 {[%emt 0:02:00]} b4 {[%emt 0:01:55]} 24. Rb1 {[%emt 0:04:56]} Rhf8 {[%emt 0:00:59]} 25. Rb7 {[%emt 0:01:45]} Ra6 {[%emt 0:00:43]} 26. g3 {[%emt 0:02:03]} Nc3 {[%emt 0:00:42]} 27. Rxb4 {[%emt 0:00:16]} Nd5 {[%emt 0:00:00]} 28. Rb3 {[%emt 0:00:46]} Rf3 {[%emt 0:00:13]} 29. Bc5+ {[%emt 0:02:07]} Kc6 {[%emt 0:00:56]} 30. Rxf3 {[%emt 0:00:26]} Kxb7 {[%emt 0:00:01]} 31. Bf2 {[%emt 0:00:07]} Nf6 {[%emt 0:00:26]} 32. Kg2 {[%emt 0:00:52]} e4 {[%emt 0:00:12]} 33. Rb3 {[%emt 0:00:16]} Kc6 {[%emt 0:00:17]} 34. Rc3+ {[%emt 0:00:09]} Kd5 {[%emt 0:00:43]} 35. Rb3 {[%emt 0:00:08]} Kc4 {[%emt 0:01:01]} 36. Rxb6 {[%emt 0:00:10]} Rxb6 {[%emt 0:00:01]} 37. Bxb6 {[%emt 0:00:09]} Kd3 {[%emt 0:00:03]} 38. h3 {[%emt 0:00:36]} Ke2 {[%emt 0:00:36]} 39. Bd4 {[%emt 0:00:23]} e3 {[%emt 0:00:33]} 40. g4 {[%emt 0:00:20]} Kd2 {[%emt 0:00:21]} 41. Kf3 {[%emt 0:30:30]} e2 {[%emt 0:30:05]} 42. Bf2 {[%emt 0:00:03]} e1=Q {[%emt 0:00:13]} 43. Bxe1+ {[%emt 0:00:03]} Kxe1 {[%emt 0:00:08]} 44. h4 {[%emt 0:00:52]} Kf1 {[%emt 0:01:12]} 45. h5 {[%emt 0:00:31]} h6 {[%emt 0:02:17]} 46. Kf4 {[%emt 0:00:26]} Kg2 {[%emt 0:00:35]} 47. g5 {[%emt 0:00:39]} Ng8 {[%emt 0:00:47]} 48. gxh6 {[%emt 0:02:18]} gxh6 {[%emt 0:00:22]} 49. Kg4 {[%emt 0:00:17]} Ne7 {[%emt 0:00:19]} 50. Kh4 {[%emt 0:00:48]} Kf3 {[%emt 0:00:05]} 51. Kh3 {[%emt 0:00:07]} Kf4 {[%emt 0:00:03]} 52. Kh4 {[%emt 0:00:04]} Kf5 {[%emt 0:00:10]} 0-1

[Event "ESP-chT Div I 2018"]
[Site "Linares"]
[Date "2018.08.10"]
[Round "5"]
[White "Vazquez Igarza, Renier"]
[Black "Plazuelo Pascual, Juan"]
[Result "1/2-1/2"]
[ECO "A50"]
[WhiteElo "2577"]
[BlackElo "2429"]
[Annotator "ChessBase"]
[PlyCount "57"]
[EventDate "2018.08.06"]
[EventType "team-tourn"]
[EventCountry "ESP"]
[SourceTitle "playchess.com"]
[Source "ChessBase"]
[SourceQuality "1"]
[TimeControl "40/5400+30:1800+30"]

1. d4 {[%emt 0:00:00]} Nf6 {[%emt 0:00:00]} 2. c4 {[%emt 0:00:00]} b6 {[%emt 0:00:00]} 3. f3 {[%emt 0:01:23]} Bb7 {[%emt 0:00:11]} 4. e4 {[%emt 0:00:56]} e6 {[%emt 0:00:07]} 5. Nc3 {[%emt 0:02:03]} Be7 {[%emt 0:00:14]} 6. Be3 {[%emt 0:01:04]} O-O {[%emt 0:00:40]} 7. Qd2 {[%emt 0:01:25]} d5 {[%emt 0:06:47]} 8. cxd5 {[%emt 0:01:40]} exd5 {[%emt 0:00:08]} 9. e5 {[%emt 0:00:09]} Ne8 {[%emt 0:01:27]} 10. f4 {[%emt 0:00:32]} c5 {[%emt 0:08:36]} 11. Nf3 {[%emt 0:00:25]} f5 {[%emt 0:09:31]} 12. Bd3 {[%emt 0:20:05]} Nc7 {[%emt 0:06:16]} 13. Bc2 {[%emt 0:06:17]} Nba6 {[%emt 0:19:56]} 14. Rd1 {[%emt 0:01:22]} Qd7 {[%emt 0:02:36]} 15. O-O {[%emt 0:01:47]} Rad8 {[%emt 0:00:22]} 16. a3 {[%emt 0:08:18]} Qc8 {[%emt 0:07:29]} 17. Bb3 {[%emt 0:09:28]} Qa8 {[%emt 0:01:25]} 18. Ba2 {[%emt 0:06:09]} Kh8 {[%emt 0:00:30]} 19. Qf2 {[%emt 0:03:40]} Ne6 {[%emt 0:02:30]} 20. Kh1 {[%emt 0:00:50]} Nac7 {[%emt 0:07:10]} 21. Rd2 {[%emt 0:07:01]} Bc6 {[%emt 0:06:05]} 22. h3 {[%emt 0:04:17]} g6 {[%emt 0:04:21]} 23. Kh2 {[%emt 0:01:15]} Qb7 {[%emt 0:01:04]} 24. Rfd1 {[%emt 0:03:39]} a6 {[%emt 0:02:39]} 25. Bb1 {[%emt 0:01:38]} Rf7 {[%emt 0:00:52]} 26. Ba2 {[%emt 0:01:11]} Rff8 {[%emt 0:00:04]} 27. Bb1 {[%emt 0:00:05]} Rf7 {[%emt 0:00:08]} 28. Ba2 {[%emt 0:02:11]} Rff8 {[%emt 0:01:50]} 29. Bb1 1/2-1/2

[Event "ESP-chT Div I 2018"]
[Site "Linares"]
[Date "2018.08.10"]
[Round "5"]
[White "Alsina Leal, Daniel"]
[Black "Martinez Alcantara, Jose Eduardo"]
[Result "1/2-1/2"]
[ECO "B22"]
[WhiteElo "2480"]
[BlackElo "2561"]
[Annotator "RC"]
[PlyCount "111"]
[EventDate "2018.08.06"]
[EventType "team-tourn"]
[EventCountry "ESP"]
[SourceTitle "playchess.com"]
[Source "ChessBase"]
[SourceQuality "1"]
[TimeControl "40/5400+30:1800+30"]

1. e4 {[%emt 0:00:00]} c5 {[%emt 0:00:00]} 2. c3 {[%emt 0:00:00]} d5 {[%emt 0:00:00]} 3. exd5 {[%emt 0:00:04]} Qxd5 {[%emt 0:00:00]} 4. d4 {[%emt 0:00:04]} Nf6 {[%emt 0:00:00]} 5. Nf3 {[%emt 0:00:05]} e6 {[%emt 0:00:28]} 6. Na3 {[%emt 0:00:52]} a6 {[%emt 0:02:36]} 7. Nc4 {[%emt 0:00:44]} Nbd7 {[%emt 0:00:06]} 8. Be2 {[%emt 0:00:47]} b5 {[%emt 0:08:44]} 9. Ne3 {[%emt 0:23:50]} Qc6 {[%emt 0:05:20]} 10. a4 {[%emt 0:02:53]} Rb8 {[%emt 0:08:33]} 11. axb5 {[%emt 0:03:36]} axb5 {[%emt 0:00:05]} 12. O-O {[%emt 0:07:00]} Be7 {[%emt 0:03:52]} 13. dxc5 {[%emt 0:09:13]} Qxc5 {[%emt 0:01:41]} 14. Nd4 {[%emt 0:02:32]} O-O {[%emt 0:08:50]} 15. Ra5 {[%emt 0:02:26]} Qc7 {[%emt 0:00:02]} 16. Rxb5 {[%emt 0:01:49]} Ra8 {[%emt 0:00:43]} 17. Bf3 {[%emt 0:05:35]} Ra6 {[%emt 0:00:33]} 18. Re1 {[%emt 0:02:27]} Nc5 {[%emt 0:01:16]} 19. Qe2 {[%emt 0:04:11]} Rd8 {[%emt 0:07:17]} 20. Nec2 {[%emt 0:02:05]} Bd6 {[%emt 0:04:43]} 21. Nb4 {[%emt 0:05:08]} Ra4 {[%emt 0:07:50]} 22. b3 {[%emt 0:11:13]} Ra1 {[%emt 0:10:35]} 23. Qb2 {[%emt 0:00:52]} Rxc1 {[%emt 0:06:04]} 24. Qxc1 {[%emt 0:02:37]} e5 {[%emt 0:00:03]} 25. Ndc6 {[%emt 0:01:28]} e4 {[%emt 0:01:11]} 26. Be2 {[%emt 0:03:16]} Re8 {[%emt 0:04:29]} 27. Qe3 {[%emt 0:00:30]} Ne6 {[%emt 0:03:40]} 28. g3 {[%emt 0:00:59]} Bd7 {[%emt 0:00:09]} 29. Rd1 {[%emt 0:06:00]} Bxb4 {[%emt 0:07:38]} 30. Nxb4 {[%emt 0:00:07]} Bxb5 {[%emt 0:00:06]} 31. Bxb5 {[%emt 0:00:02]} Rd8 {[%emt 0:00:16]} 32. Rxd8+ {[%emt 0:00:36]} Qxd8 {[%emt 0:00:02]} 33. Be2 {[%emt 0:01:39]} h6 {[%emt 0:00:04]} 34. Kg2 {[%emt 0:01:09]} Qd7 {[%emt 0:00:36]} 35. Nc2 {[%emt 0:01:06]} Nd5 {[%emt 0:00:22]} 36. Qxe4 {[%emt 0:00:24]} Nxc3 {[%emt 0:00:22]} 37. Qa8+ {[%emt 0:00:29]} Kh7 {[%emt 0:00:15]} 38. Qf3 {[%emt 0:00:32]} Nxe2 {[%emt 0:00:45]} 39. Qxe2 {[%emt 0:00:03]} Ng5 {[%emt 0:00:19]} 40. f3 {[%emt 0:00:59]} g6 {[%emt 0:01:08]} 41. Ne1 {[%emt 0:30:24]} h5 {[%emt 0:31:29]} 42. Qe3 {[%emt 0:00:30]} Qf5 {[%emt 0:00:47]} 43. Nd3 {[%emt 0:00:37]} Qh3+ {[%emt 0:00:05]} 44. Kg1 {[%emt 0:00:08]} Qf5 {[%emt 0:00:02]} 45. Kg2 {[%emt 0:00:48]} Qh3+ {[%emt 0:00:07]} 46. Kg1 {[%emt 0:00:04]} Qf5 {[%emt 0:00:21]} 47. f4 {[%emt 0:00:34]} Ne6 {[%emt 0:00:28]} 48. Nf2 {[%emt 0:00:34]} Qb1+ {[%emt 0:01:40]} 49. Kg2 {[%emt 0:00:03]} Qb2 {[%emt 0:00:08]} 50. h3 {[%emt 0:01:21]} Nd4 {[%emt 0:00:43]} 51. Qe5 {[%emt 0:00:31]} Qc3 {[%emt 0:00:02]} 52. Qd5 {[%emt 0:00:19]} Kg8 {[%emt 0:01:10]} 53. b4 {[%emt 0:00:43]} Nf5 {[%emt 0:00:35]} 54. Qd3 {[%emt 0:00:28]} Qxb4 {[%emt 0:00:10]} 55. g4 {[%emt 0:00:26]} hxg4 {[%emt 0:01:27]} 56. hxg4 {[%emt 0:00:03]} 1/2-1/2

[Event "ESP-chT Div I 2018"]
[Site "Linares"]
[Date "2018.08.10"]
[Round "5"]
[White "Moreno Ruiz, Javier"]
[Black "Almagro Llamas, Pablo"]
[Result "1-0"]
[ECO "A45"]
[WhiteElo "2450"]
[BlackElo "2442"]
[Annotator "RC"]
[PlyCount "101"]
[EventDate "2018.08.06"]
[EventType "team-tourn"]
[EventCountry "ESP"]
[SourceTitle "playchess.com"]
[Source "ChessBase"]
[SourceQuality "1"]
[TimeControl "40/5400+30:1800+30"]

1. d4 {[%emt 0:00:00]} Nf6 {[%emt 0:00:00]} 2. Bf4 {[%emt 0:00:00]} g6 {[%emt 0:02:06]} 3. e3 {[%emt 0:00:14]} Bg7 {[%emt 0:00:25]} 4. Nf3 {[%emt 0:00:17]} d6 {[%emt 0:00:30]} 5. h3 {[%emt 0:00:07]} O-O {[%emt 0:01:34]} 6. Be2 {[%emt 0:00:07]} Nbd7 {[%emt 0:01:10]} 7. O-O {[%emt 0:00:32]} b6 {[%emt 0:01:45]} 8. c4 {[%emt 0:00:35]} Bb7 {[%emt 0:00:08]} 9. Nc3 {[%emt 0:00:05]} Ne4 {[%emt 0:02:15]} 10. Nxe4 {[%emt 0:00:35]} Bxe4 {[%emt 0:00:10]} 11. Nd2 {[%emt 0:00:07]} Bb7 {[%emt 0:00:08]} 12. Bf3 {[%emt 0:00:15]} Bxf3 {[%emt 0:00:10]} 13. Nxf3 {[%emt 0:00:27]} c5 {[%emt 0:04:45]} 14. Qa4 {[%emt 0:11:16]} a6 {[%emt 0:03:18]} 15. Rfd1 {[%emt 0:04:06]} Qc7 {[%emt 0:03:24]} 16. Bg5 {[%emt 0:06:30]} Nf6 {[%emt 0:06:54]} 17. Rac1 {[%emt 0:01:35]} Qb7 {[%emt 0:04:43]} 18. Qc2 {[%emt 0:00:50]} Ne4 {[%emt 0:14:26]} 19. Bf4 {[%emt 0:00:22]} b5 {[%emt 0:00:57]} 20. d5 {[%emt 0:10:09]} f5 {[%emt 0:00:29]} 21. Ng5 {[%emt 0:00:33]} Nxg5 {[%emt 0:00:41]} 22. Bxg5 {[%emt 0:00:05]} h6 {[%emt 0:03:29]} 23. Bh4 {[%emt 0:00:51]} g5 {[%emt 0:02:18]} 24. Bg3 {[%emt 0:00:07]} bxc4 {[%emt 0:00:09]} 25. Rb1 {[%emt 0:13:02]} Qb5 {[%emt 0:17:11]} 26. f4 {[%emt 0:02:26]} Rab8 {[%emt 0:10:35]} 27. fxg5 {[%emt 0:08:18]} hxg5 {[%emt 0:00:08]} 28. Rf1 {[%emt 0:00:11]} Qd7 {[%emt 0:00:53]} 29. Qxc4 {[%emt 0:00:43]} Rb4 {[%emt 0:01:04]} 30. Qe2 {[%emt 0:13:40]} Qb7 {[%emt 0:04:53]} 31. Qh5 {[%emt 0:08:41]} Qxd5 {[%emt 0:00:37]} 32. Qxg5 {[%emt 0:00:05]} Re4 {[%emt 0:04:28]} 33. Rf3 {[%emt 0:03:06]} Qxa2 {[%emt 0:05:35]} 34. Rbf1 {[%emt 0:00:09]} Qe6 {[%emt 0:00:32]} 35. Bf4 {[%emt 0:02:58]} Qf6 {[%emt 0:02:53]} 36. Qh5 {[%emt 0:00:08]} Qf7 {[%emt 0:00:50]} 37. Qg5 {[%emt 0:00:10]} Qf6 {[%emt 0:00:11]} 38. Qh5 {[%emt 0:00:08]} e5 {[%emt 0:01:36]} 39. Bg5 {[%emt 0:00:48]} Qf7 {[%emt 0:00:06]} 40. Qxf7+ {[%emt 0:00:46]} Rxf7 {[%emt 0:00:02]} 41. Rxf5 {[%emt 0:30:08]} Rxf5 {[%emt 0:30:28]} 42. Rxf5 {[%emt 0:00:01]} Rb4 {[%emt 0:00:09]} 43. Be7 {[%emt 0:08:09]} Rxb2 {[%emt 0:00:15]} 44. Bxd6 {[%emt 0:00:05]} c4 {[%emt 0:01:32]} 45. Rg5 {[%emt 0:00:05]} Rb1+ {[%emt 0:01:44]} 46. Kf2 {[%emt 0:00:17]} Kf7 {[%emt 0:00:43]} 47. Bxe5 {[%emt 0:00:15]} Bxe5 {[%emt 0:00:35]} 48. Rxe5 {[%emt 0:00:06]} c3 {[%emt 0:00:12]} 49. Rc5 {[%emt 0:00:14]} Rc1 {[%emt 0:00:12]} 50. Ke2 {[%emt 0:00:50]} c2 {[%emt 0:01:07]} 51. Kd3 {[%emt 0:01:09]} 1-0